Cogmind - Beta 12 @@@ ROGUE MODE // 2023.03.12 @ 17:03:48 Player: Ez3 Result: Self-destructed Performance ------------- Evolutions (2) 1000 Regions Visited (3) 600 Robots Destroyed (53) 265 Value Destroyed (1306) 1306 Prototype IDs (5) 100 Alien Tech Used (0) 0 Bonus (0) 0 TOTAL SCORE: 3271 Bonus ------- None Cogmind --------- Core Integrity 264/550 Matter 285/300 Energy 150/150 System Corruption 3% Temperature Cool (0) Movement Flying (1880) Ox23 Location -8/Materials Parts ------- > --- POWER (1) -------- Micro Nuclear Core > --- PROPULSION (4) --- Faulty Aerolev Unit Flight Unit > --- UTILITY (2) ------ Huge Storage Unit > --- WEAPON (4) ------- Heavy Particle Gun Mini Grenade Launcher Heavy Mace > --- INVENTORY (25) --- Light Treads Aluminum Leg Aluminum Leg Aluminum Leg Disposable Heat Sink Small Matter Pod (50) Structural Scanner Field Laser Field Laser Particle Cannon Heavy Assault Rifle Autogun Minigun Minigun Minigun Mini Grenade Launcher Mini Grenade Launcher Mini Grenade Launcher Improved Datajack Plasma Cutter Heavy Mace Great Maul Peak State ------------ > --- POWER ------------ Improved Deuterium Engine > --- PROPULSION ------- Aluminum Leg Aluminum Leg Airjet Aerolev Unit > --- UTILITY ---------- Huge Storage Unit High-powered Tractor Beam > --- WEAPON ----------- Heavy Particle Gun Heavy Particle Gun Mini Grenade Launcher Heavy Mace > --- INVENTORY -------- Micro Nuclear Core Light Treads Aluminum Leg Aluminum Leg Flight Unit Disposable Heat Sink Small Matter Pod Structural Scanner Field Laser Field Laser Particle Cannon Heavy Assault Rifle Autogun Minigun Minigun Minigun Mini Grenade Launcher Mini Grenade Launcher Mini Grenade Launcher Improved Datajack Plasma Cutter Heavy Mace Great Maul [Rating: 34] Favorites ----------- Power Light Ion Engine Engine Light Ion Engine Power Core Micro Nuclear Core Propulsion Improved Aluminum Leg Leg Improved Aluminum Leg Hover Unit Aerolev Unit Flight Unit Flight Unit Utility Huge Storage Unit Device High-powered Tractor Beam Storage Huge Storage Unit Weapon Field Laser Energy Gun Field Laser Energy Cannon Particle Cannon Ballistic Gun Assault Rifle Launcher Mini Grenade Launcher Special Weapon Plasma Cutter Impact Weapon Heavy Mace Build | -11 -10 -9 -8 ------- Run | Jun Mat Mat Mat Slots Evolved 4 | . . 2 2 Power . | . . . . Propulsion 2 | . . 2 . Utility . | . . . . Weapon 2 | . . . 2 Parts Attached 68 | 5 3 22 38 Power 7 | 1 . 2 4 Engine 6 | 1 . 2 3 Core 1 | . . . 1 Reactor . | . . . . Propulsion 26 | 2 . 10 14 Treads . | . . . . Leg 18 | 2 . 10 6 Wheel . | . . . . Hover 4 | . . . 4 Flight 4 | . . . 4 Utility 5 | . 3 1 1 Device 4 | . 2 1 1 Storage 1 | . 1 . . Processor . | . . . . Hackware . | . . . . Protection . | . . . . Artifact . | . . . . Weapon 30 | 2 . 9 19 Energy Gun 7 | . . 1 6 Energy Cannon 1 | . . . 1 Ballistic Gun 9 | 2 . 2 5 Ballistic Cannon . | . . . . Launcher 6 | . . 3 3 Special Weapon 2 | . . . 2 Impact Weapon 5 | . . 3 2 Slashing Weapon . | . . . . Piercing Weapon . | . . . . Special Melee Weapon . | . . . . Unidentified Prototypes 1 | . . . 1 Parts Lost 18 | . . 6 12 Power 1 | . . . 1 Propulsion 11 | . . 4 7 Utility 2 | . . 1 1 Weapon 4 | . . 1 3 Highest Loss Streak 7 | . . 5 7 To Critical Strikes . | . . . . Average Slot Usage (%) 97 | . 90 99 98 Engine 10 | . 14 11 8 Leg 37 | . 28 44 34 Device 9 | . 11 10 8 Storage 9 | . 7 11 9 Energy Gun 11 | . . 5 19 Ballistic Gun 13 | . 28 14 8 Launcher 2 | . . 1 4 Impact Weapon 1 | . . 1 1 Naked Turns . | . . . . Heaviest Build 103 | 7 89 92 103 Greatest Support 52 | 20 20 52 52 Greatest Overweight (x) 24 | . 4 2 24 Average Overweight (x) 1 | . 1 1 1 Largest Inventory Capacity 25 | 5 25 25 25 Average Capacity 23 | 5 15 25 25 Most Carried 25 | 3 11 25 25 Average Carried 19 | 2 7 19 24 Final Capacity 25 | 5 25 25 25 Final Carried 22 | 3 11 22 22 Class Distribution -------------------- 69% | Mutant 30% | Gunner Dominant Class ---------------- Mutant | -10/Materials Mutant | -9/Materials Gunner | -8/Materials Resources | -11 -10 -9 -8 ----------- Run | Jun Mat Mat Mat Matter Collected 1354 | 256 10 441 647 Remotely 647 | . . . 647 Salvage Created 1386 | 48 . 574 764 Parts 62 | 2 . 20 40 Haulers Intercepted 2 | . . . 2 Recyclers Shooed 1 | . . . 1 Parts Field Recycled . | . . . . Retrieved Matter . | . . . . Parts Self-Destructed . | . . . . Prevented . | . . . . Kills | -11 -10 -9 -8 ------- Run | Jun Mat Mat Mat Combat Hostiles Destroyed 43 | 1 . 20 22 Melee 6 | . . 5 1 Guns 14 | 1 . 5 8 AOE 19 | . . 7 12 Classes Destroyed 10 | 1 . 4 5 Worker 4 | . . . 4 Builder 1 | . . . 1 Hauler 2 | . . . 2 Recycler 2 | . . . 2 Watcher 1 | . . 1 . Swarmer 18 | . . 7 11 Grunt 18 | 1 . 9 8 Brawler 1 | . . 1 . Sentry 5 | . . 3 2 Hunter 1 | . . . 1 Best Kill Streak 7 | 1 . 7 6 Combat Bots Only 7 | 1 . 7 4 Max Kills in Single Turn 4 | 1 . 3 4 Gunslinging . | . . . . Exploded 3 | . . 3 3 Melee 1 | . . 1 1 Uniques/NPCs Destroyed . | . . . . Combat | -11 -10 -9 -8 -------- Run | Jun Mat Mat Mat Damage Taken 3158 | 10 . 1378 1770 Core 613 | 10 . 317 286 Absorbed by Shields . | . . . . Core Remaining (%) 70 | 96 96 20 . Volleys Fired 70 | 1 . 30 39 Largest 4 | 2 . 2 4 Hottest 198 | 40 . 95 198 Shots Fired 171 | 2 . 53 116 Gun 139 | 2 . 45 92 Cannon . | . . . . Launcher 26 | . . 8 18 Special 6 | . . . 6 Kinetic 62 | 2 . 24 36 Thermal 83 | . . 21 62 Explosive 26 | . . 8 18 Electromagnetic . | . . . . Robot Hit Streak 8 | 2 . 8 7 Robot Miss Streak 7 | . . 2 7 Penetration Max . | . . . . Secondary Targets . | . . . . Shots Hit Robots 103 | 2 . 54 47 Core Hits 67 | 2 . 23 42 Critical Kills . | . . . . Critical Parts Destroyed 4 | . . 2 2 Critical Strikes 9 | . . 5 4 Burn 4 | . . 2 2 Smash 5 | . . 3 2 Melee Attacks 37 | . . 29 8 Impact 37 | . . 29 8 Slashing . | . . . . Piercing . | . . . . Sneak Attacks 2 | . . . 2 Combat Hostiles . | . . . . Follow-up Attacks 1 | . . 1 . Damage Inflicted 4159 | 26 . 1849 2284 Guns 1165 | 26 . 458 681 Cannons . | . . . . Explosions 1816 | . . 532 1284 Melee 1162 | . . 843 319 Ramming 16 | . . 16 . Kinetic 470 | 26 . 193 251 Thermal 715 | . . 265 450 Explosive 1796 | . . 532 1264 Electromagnetic . | . . . . Impact 1162 | . . 843 319 Slashing . | . . . . Piercing . | . . . . Highest Corruption 5 | . . 5 3 Average Corruption 4 | . . 5 3 Corruption Purged . | . . . . Corruption Blocked . | . . . . Effects 20 | . . 18 2 Message Errors 3 | . . 3 . Matter Fused 4 | . . 4 . Heat Flow Errors 4 | . . 2 2 Energy Discharges 4 | . . 4 . Parts Fused 1 | . . 1 . Data Loss (minor) 2 | . . 2 . Data Loss (major) 1 | . . 1 . Alerts 1 | . . 1 . Overload Shots . | . . . . Overflow Damage 350 | . . 114 236 Projectiles . | . . . . Explosions 55 | . . 33 22 Melee 295 | . . 81 214 Knockbacks 3 | . . 1 2 Impact 2 | . . 1 1 Kinetic . | . . . . Secondary 1 | . . . 1 Self-Inflicted Damage 205 | . . 36 169 Shots 7 | . . 2 5 Rammed . | . . . . Targets Rammed 1 | . . 1 . Kicked 1 | . . 1 . Crushed . | . . . . Highest Temperature 534 | . . 174 534 Average Temperature 124 | . . 70 148 Received Heat Transfer 1161 | 6 . 534 621 Effects 8 | . . . 8 Shutdowns 1 | . . . 1 Energy Bleed 1 | . . . 1 Interference 2 | . . . 2 Short Circuit 1 | . . . 1 Damage (major) 3 | . . . 3 Siege Activations . | . . . . Robots Corrupted . | . . . . Combat Hostiles . | . . . . Parts Fried 9 | . . 5 4 Impact Corruptions 11 | . . 5 6 Robots Melted 1 | . . 1 . Combat Hostiles 1 | . . 1 . Parts Melted 3 | . . 2 1 Heat Transferred 1863 | . . 777 1086 Parts Sabotaged . | . . . . Parts Stolen . | . . . . Parts Stripped . | . . . . Power Chain Reactions . | . . . . Missiles Intercepted . | . . . . Alert | -11 -10 -9 -8 ------- Run | Jun Mat Mat Mat Peak Influence 399 | 20 28 387 399 Initial 163 | . 13 . 163 Average 151 | . 23 73 262 Maximum Alert Level 1 | . . 1 1 Low Security (%) 57 | 100 100 85 19 Level 1 42 | . . 14 80 Level 2 . | . . . . Level 3 . | . . . . Level 4 . | . . . . Level 5 . | . . . . High Security . | . . . . Max Security . | . . . . Squads Dispatched 5 | . . 2 3 Investigation 2 | . . 1 1 Extermination . | . . . . Reinforcement 3 | . . 1 2 Assault . | . . . . Garrison . | . . . . Intercept . | . . . . Searches Triggered . | . . . . Construction Impeded 1 | . . . 1 Haulers Reinforced . | . . . . Active Scanning Responses . | . . . . Cargo Convoy Interrupts . | . . . . Stealth | -11 -10 -9 -8 --------- Run | Jun Mat Mat Mat Distress Signals 2 | . . . 2 Communications Jammed . | . . . . Distress Signals . | . . . . Times Spotted 60 | 1 2 32 25 Peak Tracking Total 8 | 1 1 8 8 Tactical Retreats 7 | . . 7 . Traps | -11 -10 -9 -8 ------- Run | Jun Mat Mat Mat Traps Triggered 1 | . . 1 . Indirectly . | . . . . Trap Hack Attempts . | . . . . Triggered . | . . . . Disarmed . | . . . . Reprogrammed . | . . . . Reused . | . . . . Traps Extracted . | . . . . Installed . | . . . . Triggered . | . . . . Machines | -11 -10 -9 -8 ---------- Run | Jun Mat Mat Mat Machines Disabled 4 | . . . 4 Max in Single Turn 2 | . . . 2 Machines Repaired . | . . . . Machines Sabotaged . | . . . . Overloaded Fab Kills . | . . . . Hacking | -11 -10 -9 -8 --------- Run | Jun Mat Mat Mat Machines Accessed 7 | . 2 3 2 Terminals 7 | . 2 3 2 Fabricators . | . . . . Repair Stations . | . . . . Recycling Units . | . . . . Scanalyzers . | . . . . Garrison Access . | . . . . Total Hacks 23 | . 6 10 7 Successful 13 | . 4 5 4 Failed 10 | . 2 5 3 Catastrophic . | . . . . Database Lockouts . | . . . . Manual . | . . . . Terminals 23 | . 6 10 7 Fabricators . | . . . . Repair Stations . | . . . . Recycling Units . | . . . . Scanalyzers . | . . . . Garrison Access . | . . . . Terminal Hacks 13 | . 4 5 4 Record 3 | . . 2 1 Prototype ID Bank 2 | . 1 1 . Alert Level 2 | . 1 1 . Locate Traps 1 | . 1 . . Dispatch Records 2 | . . . 2 Reinforcement Status 2 | . 1 . 1 Zone Layout 1 | . . 1 . Fabricator Hacks . | . . . . Repair Station Hacks . | . . . . Recycling Unit Hacks . | . . . . Scanalyzer . | . . . . Garrison Access Hacks . | . . . . Unauthorized Hacks . | . . . . Terminals . | . . . . Fabricators . | . . . . Repair Stations . | . . . . Recycling Units . | . . . . Scanalyzers . | . . . . Garrison Access . | . . . . Data Cores Recovered . | . . . . Used . | . . . . Hacking Detections 5 | . 1 2 2 Full Trace Events 1 | . . . 1 Feedback Events . | . . . . Feedback Blocked . | . . . . Robot Schematics Acquired . | . . . . Robots Built . | . . . . Authchips . | . . . . Time . | . . . . Total Robot Build Rating . | . . . . Part Schematics Acquired . | . . . . Parts Built . | . . . . Authchips . | . . . . Time . | . . . . Total Part Build Rating . | . . . . Parts Repaired . | . . . . Time . | . . . . Parts Recycled . | . . . . Recycled Matter . | . . . . Retrieved Matter . | . . . . Retrieved Components . | . . . . Parts Scanalyzed . | . . . . Part Schematics Acquired . | . . . . Parts Damaged . | . . . . Bothacking | -11 -10 -9 -8 ------------ Run | Jun Mat Mat Mat Used RIF Installer . | . . . . Robots Hacked . | . . . . Non-combat . | . . . . Combat . | . . . . Robot Hacks Applied . | . . . . Relay Couplers Released . | . . . . Fabnet Peak Effective % . | . . . . Robots Rewired . | . . . . Allies Hacked . | . . . . Hacks Repelled . | . . . . Allies | -11 -10 -9 -8 -------- Run | Jun Mat Mat Mat Total Allies . | . . . . Largest Group . | . . . . Highest-Rated Group . | . . . . Highest-Rated Ally . | . . . . Total Orders . | . . . . Ally Attacks . | . . . . Total Damage . | . . . . Kills . | . . . . Allies Corrupted . | . . . . Allies Melted . | . . . . Intel | -11 -10 -9 -8 ------- Run | Jun Mat Mat Mat Robot Analysis Total . | . . . . Derelict Logs Recovered . | . . . . Drone Launches . | . . . . Drone Recoveries . | . . . . Exploration | -11 -10 -9 -8 ------------- Run | Jun Mat Mat Mat Turns Passed 4386 | 116 469 1816 1985 Spaces Moved 1712 | 71 232 725 684 Core 14 | 14 . . . Treads . | . . . . Legs 1694 | 57 232 725 680 Wheels . | . . . . Hover 2 | . . . 2 Flight 2 | . . . 2 Fastest Speed 50 | 50 120 190 190 Average Speed 214 | 106 193 201 247 Slowest Speed 1980 | 120 400 260 1980 Overloaded Moves . | . . . . Propulsion Burnouts . | . . . . Robots Hopped . | . . . . Cave-ins Triggered . | . . . . Exploration Rate (%) 23 | 5 28 36 25 Regions Visited 3 Branch Regions . Pre-discovered Areas . | . . . . Known Exits Taken . | . . . . Unknown Exits Taken 3 | 1 1 1 . Scrap Searched . | . . . . Spaces Dug 2 | . . . 2 Terrain Destroyed 247 | . . 68 179 Melee 2 | . . . 2 Projectile . | . . . . AOE 245 | . . 68 177 Terrain Rammed . | . . . . Walls Destroyed . | . . . . Machines Disabled . | . . . . Actions | -11 -10 -9 -8 --------- Run | Jun Mat Mat Mat Total 2227 | 107 254 982 884 Wait 238 | 28 6 135 69 Move 1709 | 70 231 724 684 Hop . | . . . . Pick Up 64 | 3 11 27 23 Fast Attach 13 | 5 2 . 6 Attach 16 | . . 8 8 Detach 1 | . . . 1 Swap 39 | . 1 14 24 Drop 40 | . 3 15 22 Fire 70 | 1 . 30 39 Melee 36 | . . 28 8 Ram . | . . . . Kick 1 | . . 1 . Crush . | . . . . Escape Stasis . | . . . . Rewire . | . . . . Trap . | . . . . Miscellaneous . | . . . . Route ------- -11/Junkyard -10/Materials -9/Materials -8/Materials History --------- Turn | Location | Event 2 | -11/Junkyard | Met Revision 17 69 | -11/Junkyard | Discovered new exit (range 8) 117 | -11/Junkyard | Entered Materials 303 | -10/Materials | Build established: Mutant 428 | -10/Materials | Discovered new exit (range 12) 586 | -10/Materials | Entered another Materials area 586 | -9/Materials | Evolved 2 slots: Propulsion x2 2204 | -9/Materials | Core integrity fell below 50% 2246 | -9/Materials | Lost 5 parts (4n1w) 2260 | -9/Materials | Destroyed 7 combat bots 2379 | -9/Materials | Discovered new exit (range 13) 2402 | -9/Materials | Entered another Materials area 2402 | -8/Materials | Evolved 2 slots: Weapon x2 2706 | -8/Materials | Build established: Gunner 4285 | -8/Materials | Build established: Mutant 4380 | -8/Materials | Core integrity fell below 50% 4387 | -8/Materials | Self-destructed Last Messages --------------- 04368_ K-01 Serf collects debris. 04369_ U-05 Engineer lays Concrete. 04369_ U-05 Engineer builds a Wall. 04369_ Faulty Aerolev Unit destroyed. 04370_ U-05 Engineer builds a Wall. 04370_ U-05 Engineer lays Concrete. 04371_ System corrupted: Heat flow error (+112). 04371_ U-05 Engineer builds a Wall. 04371_ K-01 Serf collects debris. 04373_ U-05 Engineer lays Concrete. 04374_ U-05 Engineer destroyed. 04376_ U-05 Engineer lays Concrete. 04376_ K-01 Serf collects debris. 04376_ Critical hit (Burn: +37). 04377_ U-05 Engineer builds a Wall. 04377_ Hvy. Particle Gun destroyed. 04381_ K-01 Serf collects debris. 04382_ U-05 Engineer lays Concrete. 04383_ U-05 Engineer builds a Wall. 04384_ K-01 Serf collects debris. Map ----- +----------------------------------------------------+ | ?????????????????????????????????????????????????? | | ?????????????????????????????????????????????????? | | ?????????????????????????????????????????????????? | | ?????????????????????????????????????????????????? | | ?????????????????????????????????????????????????? | | ?????????????????????????????????????????????????? | | ?????????????????????????????????????????????????? | | ????????????????????????#####????????????????????? | | ???????????????????????? ????????????????????? | | ???????????????????????? ????????????????????? | | ???????????????????????? ????????????????????? | | ????????????????????????# #????????????????????? | | ????????????????????????# #????????????????????? | | ??????????????????? """?# #????????????????????? | | ????????????????????"""?+ #????????????????????? | | ?????????????????????"" # #????????????????????? | | ???????????????????? # #????????????????????? | | ?????????????????? # #?????""?????????????? | | ?????????????????? #????""" #??????????? | | ????????????????? * ##?? " #??????????? | | ??????????????########### ##? #??????????? | | ??????????????# *t !#############????????? | | ????????????### [*[o[=Y ???????? | | ############ # % =t=k!Y* = *% ???????? | | ###### # [gu! = ???????? | | ## + #@=!# #/#######????????? | | ## # # # #??????????? | | ## # # #? #??????????? | | ||| + + #^ ^+?? #??????????? | | ||| # #############^ k# ?? #??????????? | | / # # #???# ###??######??????????? | | + + "" #???# #????????????????????? | | ####+##### # "T #??? ????????????????????? | | ?# ### # "" #??? ????????????????????? | | ?# # #??? ???????????????????? | | ?# + #??? ???????????????????? | | ?# # #??? #???????????????????? | | ?# ###### = [ #??###+###???????????????????? | | ?## ##????# #????????????????????????????? | | ??# ####### !* #????????????????????????????? | | ### # # #????????????????????????????? | | # # []! ### #####????????????????????????????? | | # # ] #####????????????????????????????????? | | ### # ]! # #?????????????????????????????????? | | # + # #?????????????????????????????????? | | # # # ##?????????????????????????????????? | | # # # #?????????????????????????????????? | | # # # #?????????????????????????????????? | | # # # #?????????????????????????????????? | | # ####### #?????????????????????????????????? | +----------------------------------------------------+ Best States ------------- Heat Dissipation 31 Energy Generation 16 Energy Capacity 290 Matter Stores 300 Matter Capacity 300 Sight Range 16 Terrain Scan Density 10 ECM Strength 1 Evasion (%) 55 Item Schematics ----------------- None Robot Schematics ------------------ None Fabricated ------------ Nothing Alien Tech Used ----------------- None Achievements -------------- Loot Pinata One Hack Too Far Remodeling Use The Force Challenges ------------ None Game ------ Seed OmegaNuclearInverter Manual? 0 Play Time 01:20:54 Cumulative 5.1 hours Start 2023.03.12 @ 14:15:54 End 2023.03.12 @ 17:03:48 Sessions 3 Manual Loads 0 Difficulty Rogue Special Mode None Game No. 2 Rogue 2 Adventurer 0 Explorer 0 Win Type - Total 0 Types 0/0/0/0/0/0/0/0/0 Lore% 8 Gallery% 5 Achievement% 7 Wizard Run 0 Options --------- ASCII 0 Keyboard 1 Movement Vi Keybinds 0 Fullscreen 1 Font 14/SmallcapsGlow Map View 72x54 Tactical HUD 1 Map Filters NONE Filters NONE Steam 0 RUN: e21920bf-f2b5-4887-a825-58c1e00a411a